Cogmind - Beta 15 @@@ ROGUE MODE // 2025.06.23 @ 23:07:46 Player: Btuck Result: Destroyed by 11-NLJ(R) with Subdweller Machine Gun Performance ------------- Evolutions (0) 0 Regions Visited (2) 400 Robots Destroyed (18) 90 Value Destroyed (460) 460 Prototype IDs (11) 220 Alien Tech Used (0) 0 Bonus (-32) -32 TOTAL SCORE: 1138 Bonus ------- Friendly Fire -32 Cogmind --------- Core Integrity 0/250 Matter 274/300 Energy 100/100 System Corruption 0% Temperature Cool (0) Movement Core (50) Location -10/Subcaves Parts ------- > --- POWER (1) -------- (None) > --- PROPULSION (2) --- (None) > --- UTILITY (2) ------ (None) > --- WEAPON (2) ------- (None) > --- INVENTORY (5) ---- Small Storage Unit Seismic Detector Scrap Shield Fragment (49) Scrap Shield Fragment (48) Peak State ------------ > --- POWER ------------ Light Nuclear Core > --- PROPULSION ------- Aluminum Leg Aluminum Leg > --- UTILITY ---------- Improved Heat Sink Small Storage Unit > --- WEAPON ----------- Particle Gun Assault Rifle > --- INVENTORY -------- Ion Engine Light Treads Light Treads Aluminum Leg Heat Sink Seismic Detector Small Laser Grenade Launcher [Rating: 12] Favorites ----------- Power Ion Engine Engine Ion Engine Power Core Light Nuclear Core Propulsion Aluminum Leg Treads Light Treads Leg Aluminum Leg Utility Small Storage Unit Device Improved Heat Sink Storage Small Storage Unit Protection Scrap Shield Weapon Assault Rifle Energy Gun Small Laser Ballistic Gun Assault Rifle Ballistic Cannon Light Cannon Launcher Grenade Launcher Build | -11 -10 -10 ------- Run | Yrd Mat Sub Slots Evolved . | . . . Power . | . . . Propulsion . | . . . Utility . | . . . Weapon . | . . . Parts Attached 25 | 7 8 10 Power 5 | 1 2 2 Engine 4 | 1 1 2 Core 1 | . 1 . Reactor . | . . . Propulsion 5 | 2 3 . Treads 2 | 2 . . Leg 3 | . 3 . Wheel . | . . . Hover . | . . . Flight . | . . . Utility 6 | 2 1 3 Device 2 | 1 1 . Storage 1 | 1 . . Processor . | . . . Hackware . | . . . Protection 3 | . . 3 Artifact . | . . . Weapon 9 | 2 2 5 Energy Gun 4 | 1 1 2 Energy Cannon . | . . . Ballistic Gun 3 | 1 . 2 Ballistic Cannon 1 | . 1 . Launcher 1 | . . 1 Special Weapon . | . . . Impact Weapon . | . . . Slashing Weapon . | . . . Piercing Weapon . | . . . Special Melee Weapon . | . . . Unidentified Prototypes . | . . . Parts Lost 8 | . . 8 Power . | . . . Propulsion 1 | . . 1 Utility 3 | . . 3 Weapon 4 | . . 4 Highest Loss Streak 3 | . . 3 To Critical Strikes . | . . . Average Backups 5 | . 6 3 Power . | . . . Propulsion 1 | . 2 . Utility 1 | . 2 2 Weapon 1 | . 1 1 Tool/Special . | . . . Unused Backups 4 | . 1 3 Power 1 | . 1 . Propulsion 1 | . . 1 Utility 2 | . . 2 Weapon . | . . . Tool/Special . | . . . Average Slot Usage (%) 86 | . 99 70 Engine 11 | . 10 12 Core 1 | . 3 . Treads 10 | . 1 22 Leg 14 | . 26 . Device 7 | . 14 . Storage 7 | . 14 . Protection 4 | . . 9 Energy Gun 11 | . 13 10 Ballistic Gun 12 | . 14 11 Peak Build Rating 12 | 7 12 12 Average Rating 8 | 5 9 8 On Entrance 5 | . 7 9 Naked Turns 40 | . . 40 Heaviest Build 31 | 14 16 31 Greatest Support 40 | 40 40 40 Greatest Overweight (x) 1 | . 1 1 Average Overweight (x) . | . . . Largest Inventory Capacity 8 | 8 8 8 Average Capacity 6 | 7 8 5 Most Carried 8 | 1 8 8 Average Carried 5 | . 6 4 Final Capacity 8 | 8 8 5 Final Carried 8 | 1 8 4 Class Distribution -------------------- 64% | Mutant 22% | Subdweller-Mutant 12% | Scavenger-Mutant Dominant Class ---------------- Mutant | -10/Materials Subdweller-Mutant | -10/Subcaves Resources | -11 -10 -10 ----------- Run | Yrd Mat Sub Matter Collected 676 | 291 150 235 Remotely . | . . . Salvage Created 585 | 110 403 72 Parts 32 | 6 19 7 Haulers Intercepted 2 | . 2 . Recyclers Shooed . | . . . Parts Field Recycled . | . . . Retrieved Matter . | . . . Parts Self-Destructed 7 | . . 7 Prevented . | . . . Kills | -11 -10 -10 ------- Run | Yrd Mat Sub Combat Hostiles Destroyed 10 | . 6 4 Guns 10 | . 6 4 Classes Destroyed 8 | 2 5 1 Worker 1 | . 1 . Tunneler 2 | 2 . . Hauler 2 | . 2 . Recycler 1 | 1 . . Operator 1 | . 1 . Watcher 1 | . 1 . Grunt 6 | . 6 . Subdweller 4 | . . 4 Best Kill Streak 3 | 2 3 3 Combat Bots Only 3 | . 2 3 Max Kills in Single Turn 1 | 1 1 1 Gunslinging . | . . . Exploded . | . . . Melee . | . . . Uniques/NPCs Destroyed . | . . . Combat | -11 -10 -10 -------- Run | Yrd Mat Sub Hostile Shots Fired 114 | . 33 81 Missed 31 | . 11 20 Hits 83 | . 22 61 Projectile 83 | . 22 61 AOE 3 | . . 3 Critical Strikes 3 | . 1 2 Damage Taken 1847 | . 293 1554 Core 265 | . 26 239 Absorbed by Shields . | . . . Core Remaining (%) 100 | 100 . . Volleys Fired 80 | 7 48 25 Largest 2 | 2 2 2 Hottest 90 | 60 85 90 Shots Fired 145 | 13 93 39 Gun 141 | 13 93 35 Cannon . | . . . Launcher 4 | . . 4 Special . | . . . Kinetic 71 | 7 48 16 Thermal 70 | 6 45 19 Explosive 4 | . . 4 Electromagnetic . | . . . Robot Hit Streak 10 | 3 8 10 Robot Miss Streak 8 | 2 8 1 Penetration Max . | . . . Secondary Targets 2 | . 1 1 Max Gunslinging Chain 1 | . 1 1 Shots Hit Robots 95 | 7 59 29 Core Hits 31 | 4 22 5 Critical Kills 1 | . . 1 Critical Parts Destroyed 1 | . 1 . Critical Strikes 4 | . 2 2 Burn 1 | . 1 . Destroy 3 | . 1 2 Melee Attacks . | . . . Impact . | . . . Slashing . | . . . Piercing . | . . . Sneak Attacks . | . . . Combat Hostiles . | . . . Follow-up Attacks . | . . . Damage Inflicted 1573 | 80 849 644 Guns 1434 | 80 849 505 Cannons . | . . . Explosions 139 | . . 139 Melee . | . . . Ramming . | . . . Kinetic 676 | 46 429 201 Thermal 758 | 34 420 304 Explosive 139 | . . 139 Electromagnetic . | . . . Impact . | . . . Slashing . | . . . Piercing . | . . . Highest Corruption . | . . . Average Corruption . | . . . Corruption Purged . | . . . Corruption Blocked . | . . . Overload Shots . | . . . Overflow Damage 24 | . . 24 Projectiles . | . . . Explosions 24 | . . 24 Melee . | . . . Knockbacks . | . . . Impact . | . . . Kinetic . | . . . Secondary . | . . . Self-Inflicted Damage 97 | . . 97 Shots 3 | . . 3 Rammed 1 | . . 1 Targets Rammed 1 | . . 1 Kicked . | . . . Crushed . | . . . Highest Temperature 210 | . 210 . Average Temperature 67 | . 67 . Received Heat Transfer 273 | . 174 99 Siege Activations . | . . . Martial Activations . | . . . Shielding Activations . | . . . Robots Disrupted . | . . . Combat Hostiles . | . . . Robots Corrupted . | . . . Combat Hostiles . | . . . Parts Fried . | . . . Impact Corruptions . | . . . Robots Melted . | . . . Combat Hostiles . | . . . Parts Melted 4 | . 3 1 Heat Transferred 1526 | 75 1051 400 Parts Sabotaged . | . . . Parts Stolen . | . . . Parts Stripped . | . . . Power Chain Reactions . | . . . Alert | -11 -10 -10 ------- Run | Yrd Mat Sub Maximum Alert Level . | . . . Low Security (%) 100 | 100 100 . Level 1 . | . . . Level 2 . | . . . Level 3 . | . . . Level 4 . | . . . Level 5 . | . . . High Security . | . . . Max Security . | . . . Peak Influence 50 | 10 50 . Initial . | . . . Average 9 | 1 10 . Influence Increases 251 | 15 236 . Destroy 0b10 Robot/C 120 | . 120 . Destroy 0b10 Robot/NC 40 | 15 25 . Destroy Leader 46 | . 46 . Successful Hack 14 | . 14 . Destroy Structure 1 | . 1 . Lose Combat Pursuer 30 | . 30 . Influence Decreases 251 | 15 236 . Time Decay 251 | 15 236 . Squads Dispatched 1 | . 1 . Investigation . | . . . Extermination . | . . . Reinforcement 1 | . 1 . Assault . | . . . Garrison . | . . . Intercept . | . . . Searches Triggered . | . . . Construction Impeded . | . . . Haulers Reinforced . | . . . Active Scanning Responses . | . . . Cargo Convoy Interrupts . | . . . Stealth | -11 -10 -10 --------- Run | Yrd Mat Sub Distress Signals 1 | . 1 . Communications Jammed . | . . . Distress Signals . | . . . Times Spotted 42 | . 17 25 Peak Tracking Total 8 | . 3 8 Tactical Retreats 3 | . 2 1 Traps | -11 -10 -10 ------- Run | Yrd Mat Sub Traps Triggered 2 | . 1 1 Indirectly . | . . . Trap Hack Attempts . | . . . Triggered . | . . . Disarmed . | . . . Reprogrammed . | . . . Reused . | . . . Traps Extracted . | . . . Installed . | . . . Triggered . | . . . Machines | -11 -10 -10 ---------- Run | Yrd Mat Sub Machines Disabled 2 | . . 2 Max in Single Turn 2 | . . 2 Machines Repaired . | . . . Machines Dismantled . | . . . Machines Sabotaged . | . . . Overloaded Fab Kills . | . . . Hacking | -11 -10 -10 --------- Run | Yrd Mat Sub Machines Accessed 5 | . 4 1 Terminals 4 | . 4 . Fabricators . | . . . Repair Stations . | . . . Recycling Units . | . . . Scanalyzers . | . . . Garrison Access . | . . . Total Hacks 22 | . 13 9 Successful 16 | . 7 9 Failed 5 | . 5 . Catastrophic . | . . . Database Lockouts 1 | . 1 . Manual 15 | . 14 1 Terminals 13 | . 13 . Fabricators . | . . . Repair Stations . | . . . Recycling Units . | . . . Scanalyzers . | . . . Garrison Access . | . . . Terminal Hacks 12 | . 3 9 Record 8 | . . 8 Robot Analysis 2 | . 2 . Locate Traps 1 | . 1 . Proto ID Catalog 1 | . . 1 Fabricator Hacks . | . . . Repair Station Hacks . | . . . Recycling Unit Hacks . | . . . Scanalyzer . | . . . Garrison Access Hacks . | . . . Unauthorized Hacks 4 | . 4 . Terminals 4 | . 4 . Botnet 4 | . 4 . Fabricators . | . . . Repair Stations . | . . . Recycling Units . | . . . Scanalyzers . | . . . Garrison Access . | . . . Data Cores Recovered . | . . . Used . | . . . Hacking Detections 3 | . 3 . Full Trace Events 1 | . 1 . Feedback Events . | . . . Feedback Blocked . | . . . Robot Schematics Acquired . | . . . Robots Built . | . . . Authchips . | . . . Time . | . . . Total Robot Build Rating . | . . . Part Schematics Acquired . | . . . Parts Built . | . . . Authchips . | . . . Time . | . . . Total Part Build Rating . | . . . Parts Repaired . | . . . Time . | . . . Parts Recycled . | . . . Recycled Matter . | . . . Retrieved Matter . | . . . Retrieved Components . | . . . Parts Scanalyzed . | . . . Part Schematics Acquired . | . . . Parts Damaged . | . . . Bothacking | -11 -10 -10 ------------ Run | Yrd Mat Sub Used RIF Installer . | . . . Robots Hacked . | . . . Non-combat . | . . . Combat . | . . . Robot Hacks Applied . | . . . Relay Couplers Released . | . . . Fabnet Peak Effective % . | . . . Robots Rewired . | . . . Allies Hacked . | . . . Hacks Repelled . | . . . Allies | -11 -10 -10 -------- Run | Yrd Mat Sub Total Allies . | . . . Largest Group . | . . . Highest-Rated Group . | . . . Highest-Rated Ally . | . . . Total Orders . | . . . Ally Attacks . | . . . Total Damage . | . . . Kills . | . . . Allies Corrupted . | . . . Allies Melted . | . . . Intel | -11 -10 -10 ------- Run | Yrd Mat Sub Active Infowar (turns) 440 | 90 350 . Seismic 440 | 90 350 . Robot Analysis Total 2 | . 2 . Derelict Logs Recovered . | . . . Drone Launches . | . . . Drone Recoveries . | . . . Exploration | -11 -10 -10 ------------- Run | Yrd Mat Sub Turns Passed 1802 | 126 894 782 Spaces Moved 1172 | 61 574 537 Core 195 | 2 . 193 Treads 416 | 59 16 341 Legs 561 | . 558 3 Wheels . | . . . Hover . | . . . Flight . | . . . Fastest Speed 50 | 50 120 50 Average Speed 124 | 156 121 123 Slowest Speed 240 | 160 190 240 Overloaded Moves . | . . . Propulsion Burnouts . | . . . Robots Hopped . | . . . Potential Cave-ins . | . . . Cave-ins Triggered . | . . . Exploration Rate (%) 40 | 4 71 45 Regions Visited 2 Branch Regions 1 Pre-discovered Areas . | . . . Known Exits Taken . | . . . Unknown Exits Taken 2 | 1 1 . Scrap Searched 1 | . . 1 Spaces Dug . | . . . Terrain Destroyed 9 | . . 9 Melee . | . . . Projectile . | . . . AOE 9 | . . 9 Terrain Rammed . | . . . Walls Destroyed . | . . . Machines Disabled . | . . . Actions | -11 -10 -10 --------- Run | Yrd Mat Sub Total 1372 | 75 679 618 Wait 49 | . 36 13 Move 1170 | 60 573 537 Hop . | . . . Pick Up 14 | 1 6 7 Fast Attach 21 | 7 5 9 Attach 4 | . . 4 Detach 6 | . 3 3 Swap 4 | . 3 1 Drop 19 | . 5 14 Fire 80 | 7 48 25 Melee . | . . . Ram 1 | . . 1 Kick . | . . . Crush . | . . . Escape Stasis . | . . . Rewire . | . . . Trap . | . . . Miscellaneous 4 | . . 4 Route ------- -11/Scrapyard -10/Materials (discovered 4 exits: [*Mat x2] / [*Min] / *Sub) -10/Subcaves History --------- Turn | Location | Event 65 | -11/Scrapyard | Discovered new exit (range 15) 127 | -11/Scrapyard | Entered Materials 178 | -10/Materials | Discovered new exit (range 6) 313 | -10/Materials | Build established: Mutant 770 | -10/Materials | Central database locked down 816 | -10/Materials | Discovered new exit (range 6) 938 | -10/Materials | Discovered new exit (range 8) 957 | -10/Materials | Discovered new exit (range 5) 1021 | -10/Materials | Entered Subcaves 1022 | -10/Subcaves | Approached by a straggling Scientist 1168 | -10/Subcaves | Ambushed by swarm of Subdwellers 1227 | -10/Subcaves | Lost 3 allies 1350 | -10/Subcaves | Ambushed by Subdweller buried in earth 1376 | -10/Subcaves | Core integrity fell below 50% 1408 | -10/Subcaves | Lost 3 parts (1u2w) 1679 | -10/Subcaves | Shifting Twisted Machinery released Sub. Machine Gun 1695 | -10/Subcaves | Released all parts (3) 1698 | -10/Subcaves | Shifting Twisted Machinery released Sub. Machine Gun 1762 | -10/Subcaves | Visited 4L-MR0's lab 1767 | -10/Subcaves | Core integrity fell below 20% 1790 | -10/Subcaves | A swath of the cavern ceiling suddenly collapsed 1803 | -10/Subcaves | Destroyed by 11-NLJ(R) with Subdweller Machine Gun Last Messages --------------- want that. >>Record "Uberlauncher" I hear [REDACTED] exploded during the installation process. I did warn them to fully install it before trying to fire, and something tells me that's where things went wrong. Still I'm glad they didn't listen, that way I'm not culpable for whatever they would've done with it. If we're lucky even some of the others got blasted, too. 01766_ Machine disabled. 01766_ Grenade Launcher destroyed. 01766_ Destroyed Grenade Launcher. 01772_ Connecting with 4L-MR0's Prototype Logs... 01790_ SP-EFE(u) crushed by falling debris. 01790_ SP-EFE(u) cries out in pain. 01790_ SP-EFE(u) destroyed. A swath of the cavern ceiling suddenly collapses. Map ----- +----------------------------------------------------+ | ?????????????????????????????????????????????????? | | ?????????????????????????????????????????????????? | | ?????????????????????????????????????????????????? | | ?????????????????????????????????????????????????? | | ?????????????????????????????????????????????????? | | ?????????????????????????????????????????????????? | | ?????????????????????????????????????????????????? | | ?????????????????????????????????????????????????? | | ?????????????????????????????????????????????????? | | ?????????????????????????????????????????????????? | | ????????????????????????????????????????????????? | | ?????????????????????????????????????????????????? | | ????????????????????????????????????????????????? | | ?????????????????????????????????????????????????" | | ???????????????????????????????????????????????? " | | ??????????????????????#####?#????????????????????? | | ????????????????????###"# ## ????????????????????? | | ????????????????????""?" ?????????????????????? | | ????????????????????"""" ###?????????????????????? | | ????????????????????#""# #;#?????????????????????? | | ?????????????????????"" #;##????????????????????? | | ??????????????????????""##;#####?????????????????? | | ??????????????????#"#??## ## #?????????????????? | | ?????????????? """#"#####;;# #?????????????????? | | ??????????????#"""""##;"# ;# ##?????????????????? | | ???????????????#""""" #R@### #??????????????????? | | ???????????????#"""" ## ###??????????????????????? | | ??????????????##" ###"##???????????????????????? | | ?????????????##"" " #???????????????????????? | | ?????????????#"" "" ### ##???????????????????? | | ?????????????#" #???????????????????? | | ?????????????#" ##???????????????????? | | ?????????????# ####????????????????????? | | ?????????????#### ## #???#####???????????????? | | ???????????????# ### #??## ###?????????????? | | ?#########??##### ### #### # ##????????????? | | ##""" """#### ### # #????????????? | | #" """ "" "### ### #????????????? | | #" "" "" ## #???##?##????? | | #" ^ ## ## #??? # ?????? | | ?## ""## # ## #???? ?????? | | ?### ##### ## # ###????" ##????? | | ?# #?# #" ## ##????### $#????? | | ?# #?# ######## ###### # ###???? | | ?# "#?# ##?????## # # " " ##??? | | ?# X"#?# #"" ##?????# ###? | | ?# #?#####" #?????# #? | | ?#"# "#?????# #???## ## | | ?#=#""#?????## #??## | | ?######??????# ### ## | +----------------------------------------------------+ Best States ------------- Heat Dissipation 39 Energy Generation 15 Energy Capacity 250 Matter Stores 300 Matter Capacity 300 Sight Range 16 Terrain Scan Density 10 Armor Coverage 800 Evasion (%) 55 Recoil Reduction 2 Item Schematics ----------------- None Robot Schematics ------------------ None Fabricated ------------ Nothing Repaired ---------- Nothing Alien Tech Used ----------------- None Achievements -------------- None Challenges ------------ None Game ------ Seed PowerChainExpander Manual? 0 Play Time 00:17:57 Cumulative 74.1 hours Start 2025.06.23 @ 22:51:05 End 2025.06.23 @ 23:07:46 Sessions 1 Manual Loads 0 Difficulty Rogue Special Mode None Game No. 102 Rogue 102 Adventurer 0 Explorer 0 Win Type - Total 1 Types 1/0/0/0/0/0/0/0/0/0 Lore% 40 Gallery% 41 Achievement% 39 Wizard Run 0 Options --------- Layout 2 ASCII 0 Keyboard 1 Movement Numpad Keybinds 0 Fullscreen 1 Font 32/Smallcaps Map View 50x44 Zoom Use 0% Tactical HUD 1 Map Filters NONE Filters NONE Steam 1 RUN: be97988e-3e7c-40ac-b4c6-f59ae59f8513